fUSD/lending_fUSD_20260320
["ID","MTS","AMOUNT","RATE_DAILY","PERIOD"]
[408618664,1773971431671,-172.08,0.00010769,2]
[408618665,1773971431680,-172.08,0.00011095,2]
[408618666,1773971431689,-166.66,0.00011256,2]
[408618667,1773971431699,-172.08,0.00011422,2]
[408618668,1773971431708,-166.66,0.00011493,2]
[408618669,1773971431719,-166.66,0.0001173,2]
[408618670,1773971431729,-172.08,0.00011748,2]
[408618671,1773971431741,-906.51874495,0.00011876,2]
[408618678,1773971432245,-6761.48125505,0.00011876,2]
[408618679,1773971432255,-166.66,0.00011967,2]
[408618680,1773971432264,-172.08,0.00012074,2]
[408618681,1773971432274,-166.66,0.00012204,2]
[408618682,1773971432283,-172.08,0.00012401,2]
[408618683,1773971432293,-301.29,0.00012402,2]
[408618684,1773971432302,-1500.0,0.00012402,2]
[408618685,1773971432311,-166.66,0.00012441,2]
[408618686,1773971432320,-195.0,0.00012575,3]
[408618687,1773971432330,-150.0,0.00012682,2]
[408618688,1773971432339,-286.0,0.00012957,2]
[408618689,1773971432348,-979.16666667,0.00012979,2]
[408618690,1773971432358,-5019.39839512,0.00013,2]
[408618691,1773971432367,-5000.0,0.00013,2]
[408618692,1773971432377,-286.0,0.00013062,2]
[408618693,1773971432386,-286.0,0.00013154,2]
[408618694,1773971432396,-286.0,0.00013164,2]
[408618695,1773971432405,-418.0,0.000132,3]
[408618696,1773971432415,-286.0,0.00013283,2]
[408618697,1773971432424,-508.0,0.000133,2]
[408618698,1773971432434,-2335.0045,0.00013327,2]
[408618699,1773971432443,-15109.4441,0.00013327,2]
[408618700,1773971432453,-4342.1305,0.00013327,2]
[408618701,1773971432462,-286.0,0.00013343,2]
[408618702,1773971432471,-168.0,0.00013347,2]
[408618703,1773971432481,-184.443,0.00013406,2]
[408618704,1773971432490,-3755.942,0.00013406,2]
[408618705,1773971432500,-150.0,0.00013406,2]
[408618706,1773971432509,-667.89121401,0.00013407,2]
[408618707,1773971432518,-3325.76715472,0.00013407,2]
[408618708,1773971432528,-4033.33818173,0.00013407,2]
[408618709,1773971432538,-14170.6202,0.00013407,2]
[408618710,1773971432547,-1000.0,0.00013407,2]
[408618711,1773971432557,-2500.0,0.00013407,2]
[408618712,1773971432567,-201.77912311,0.00013419,2]
[408618713,1773971432576,-150.0,0.00013426,2]
[408618714,1773971432586,-26535.0811203,0.00013427,2]
[408618715,1773971432595,-2923.3283443,0.00013427,2]
[408618716,1773971432604,-29021.60839,0.00013427,2]
[408618717,1773971432614,-17526.1449546,0.00013427,2]
[408618718,1773971432624,-500.0,0.00013427,2]
[408618719,1773971432633,-7965.41053268,0.00013505,2]
[408618720,1773971432644,-914.46898429,0.00013505,2]
[408618721,1773971432653,-151.0,0.00013505,2]
[408618722,1773971432662,-435.45718902,0.00013505,2]
[408618723,1773971432672,-16519.5204,0.00013506,2]
[408618724,1773971432681,-500.0,0.00013506,2]
[408618725,1773971432691,-310.13867419,0.00013506,2]
[408618726,1773971432700,-238.68712771,0.00013506,2]
[408618727,1773971432709,-500.0,0.00013506,2]
[408618728,1773971432719,-265.02557344,0.00013506,2]
[408618729,1773971432728,-93287.60871942,0.00013507,2]
[408618754,1773971440263,-500.0,0.00013505,2]
[408618756,1773971440272,-176.30304476,0.00013505,2]
[408618757,1773971440283,-170.11127427,0.00013505,2]
[408618765,1773971442680,-329.88872573,0.00013505,2]
[408618766,1773971442689,-500.0,0.00013505,2]
[408618767,1773971442698,-500.0,0.00013505,2]
[408618768,1773971442707,-500.0,0.00013505,2]
[408618769,1773971442717,-500.0,0.00013505,2]
[408618770,1773971442727,-500.0,0.00013505,2]
[408618771,1773971442736,-500.0,0.00013505,2]
[408618772,1773971442746,-500.0,0.00013505,2]
[408618773,1773971442755,-500.0,0.00013505,2]
[408618774,1773971442764,-500.0,0.00013505,2]
[408618775,1773971442774,-500.0,0.00013505,2]
[408618776,1773971442784,-500.0,0.00013505,2]
[408618778,1773971442793,-500.0,0.00013505,2]
[408618780,1773971442802,-500.0,0.00013505,2]
[408618781,1773971442812,-500.0,0.00013505,2]
[408618782,1773971442823,-500.0,0.00013505,2]
[408618783,1773971442833,-500.0,0.00013505,2]
[408618784,1773971442842,-500.0,0.00013505,2]
[408618785,1773971442852,-500.0,0.00013505,2]
[408618786,1773971442861,-500.0,0.00013505,2]
[408618787,1773971442871,-500.0,0.00013505,2]
[408618788,1773971442882,-500.0,0.00013505,2]
[408618789,1773971442891,-500.0,0.00013505,2]
[408618791,1773971442901,-500.0,0.00013505,2]
[408618792,1773971442910,-500.0,0.00013505,2]
[408618793,1773971442920,-500.0,0.00013505,2]
[408618794,1773971442929,-254.56701268,0.00013505,2]
[408618795,1773971442939,-500.0,0.00013505,2]
[408618797,1773971442952,-500.0,0.00013505,2]
[408618799,1773971442961,-500.0,0.00013505,2]
[408618800,1773971442970,-500.0,0.00013505,2]
[408618802,1773971442979,-500.0,0.00013505,2]
[408618804,1773971442988,-500.0,0.00013505,2]
[408618805,1773971442997,-500.0,0.00013505,2]
[408618806,1773971443006,-500.0,0.00013505,2]
[408618807,1773971443015,-500.0,0.00013505,2]
[408618808,1773971443025,-500.0,0.00013505,2]
[408618809,1773971443035,-500.0,0.00013505,2]
[408618810,1773971443044,-229736.75843341,0.00013507,2]
[408618811,1773971443056,-2102.02998321,0.00013507,2]
[408618812,1773971445453,-3700.0,0.00013507,2]
[408618813,1773971445507,-21543.637763,0.00013507,2]
[408618814,1773971445560,-148178.30532578,0.00013507,2]
[408618835,1773972631674,-340.14858335,0.00011507,2]
[408618836,1773972631869,-1461.83141665,0.00011507,2]
[408618838,1773972631881,-300.0,0.00012335,2]
[408618839,1773972631894,-1200.0,0.00012335,2]
[408618840,1773972631904,-10000.0,0.00012336,2]
[408618841,1773972631914,-200.0,0.00012442,2]
[408618842,1773972631924,-252.31247552,0.00012658,2]
[408618843,1773972631934,-250.0,0.00012658,2]
[408618844,1773972631943,-250.0,0.00012658,2]
[408618845,1773972631952,-502.51043512,0.000127,2]
[408618846,1773972631961,-500.25608799,0.000127,2]
[408618847,1773972631971,-504.44754648,0.000127,2]
[408618848,1773972631981,-500.0,0.000127,2]
[408618849,1773972631991,-500.0,0.000127,2]
[408618850,1773972632000,-500.0,0.00012724,2]
[408618851,1773972632010,-160.0,0.00012776,2]
[408618852,1773972632019,-7965.41053268,0.00013159,2]
[408618853,1773972632029,-151.0,0.00013159,2]
[408618854,1773972632038,-500.0,0.00013178,2]
[408618855,1773972632048,-150.0,0.00013213,2]
[408618856,1773972632057,-8156.08315727,0.00013214,2]
[408618857,1773972632067,-158.42317892,0.00013214,2]
[408618858,1773972632077,-503.85332488,0.00013248,2]
[408618859,1773972632086,-502.16126991,0.00013248,2]
[408618860,1773972632096,-979.16666667,0.00013254,2]
[408618861,1773972632106,-9999.99,0.00013273,2]
[408618862,1773972632115,-5307.72,0.00013273,2]
[408618863,1773972632124,-354.53,0.00013273,2]
[408618864,1773972632133,-9999.99,0.00013273,2]
[408618865,1773972632143,-9999.99,0.00013273,2]
[408618866,1773972632153,-150.99,0.00013273,2]
[408618867,1773972632162,-150.99,0.00013273,2]
[408618868,1773972632171,-7595.79,0.00013273,2]
[408618869,1773972632181,-502.0,0.000133,2]
[408618870,1773972632191,-3362.95020927,0.00013305,2]
[408618871,1773972632201,-3529.17090904,0.00013305,2]
[408618872,1773972632211,-10078.40502023,0.00013305,2]
[408618873,1773972632220,-3004.754,0.00013343,2]
[408618874,1773972632230,-184.443,0.00013347,2]
[408618875,1773972632240,-150.0,0.00013403,2]
[408618876,1773972632249,-500.0,0.00013404,2]
[408618877,1773972632260,-500.0,0.00013404,2]
[408618878,1773972632270,-500.0,0.00013404,2]
[408618879,1773972632279,-500.0,0.00013404,2]
[408618880,1773972632288,-500.0,0.00013404,2]
[408618881,1773972632297,-500.0,0.00013404,2]
[408618882,1773972632306,-500.0,0.00013404,2]
[408618883,1773972632316,-500.0,0.00013404,2]
[408618884,1773972632326,-500.0,0.00013404,2]
[408618885,1773972632335,-500.0,0.00013404,2]
[408618886,1773972632345,-500.0,0.00013404,2]
[408618887,1773972632355,-425.45670127,0.00013404,2]
[408618888,1773972632366,-500.0,0.00013404,2]
[408618889,1773972632376,-500.0,0.00013404,2]
[408618890,1773972632385,-500.0,0.00013404,2]
[408618891,1773972632395,-499.99999999,0.00013404,2]
[408618892,1773972632404,-43703.73130903,0.00013404,2]
[408618893,1773972632413,-236504.8848,0.00013405,2]
[408618894,1773972632423,-2500.0,0.00013405,2]
[408618895,1773972632437,-445.26080934,0.00013405,2]
[408618896,1773972632446,-958.56699151,0.00013407,2]
[408618897,1773972632455,-1000.0,0.00013407,2]
[408618898,1773972632465,-367.0,0.00013412,2]
[408618899,1773972632476,-3240.0,0.00013425,2]
[408618900,1773972632485,-502.2611496,0.00013473,2]
[408618901,1773972632494,-200.0033317,0.000135,2]
[408618902,1773972632504,-567.09707193,0.00013504,2]
[408618903,1773972632514,-167.0809894,0.00013504,2]
[408618904,1773972632523,-535.51790141,0.00013504,2]
[408618905,1773972632532,-639123.89042654,0.00013505,2]
[408618908,1773972637662,-2674.05758507,0.00013505,2]
[408618909,1773972637674,-1903.10805867,0.00013505,2]
[408618910,1773972637685,-1630.6993021,0.00013505,2]
[408618911,1773972637696,-437.15649742,0.00013505,2]
[408618912,1773972637715,-359.4103643,0.00013505,2]
[408618916,1773972639815,-473.93335833,0.00013505,2]
[408618917,1773972640130,-2311.10971837,0.00013505,2]
[408618921,1773972642946,-1184.45321259,0.00013505,2]
[408618922,1773972642957,-1382.08232065,0.00013505,2]
[408618923,1773972642969,-478.51655685,0.00013505,2]
[408618927,1773972645631,-6688.72290876,0.00013505,2]
[408618976,1773973831892,-300.0,9.499e-05,2]
[408618977,1773973831904,-150.0,9.499e-05,2]
[408618978,1773973831914,-228.0,9.499e-05,2]
[408618979,1773973831924,-541.21091455,9.5e-05,3]
[408618980,1773973831936,-1335.71052593,9.5e-05,3]
[408618981,1773973831948,-500.0,9.5e-05,3]
[408618982,1773973831974,-1157.65074635,9.5e-05,3]
[408618983,1773973831986,-74083.08881785,9.5e-05,3]
[408618984,1773973831996,-261.28011819,0.000101,2]
[408618985,1773973832007,-250.0,0.00010449,2]
[408618986,1773973832016,-163.1,0.00012425,2]
[408618987,1773973832026,-2000.0,0.00012476,2]
[408618988,1773973832037,-150.0,0.00012593,2]
[408618989,1773973832047,-193.28,0.00012674,2]
[408618990,1773973832058,-400.0,0.000127,4]
[408618992,1773973832068,-800.0,0.000128,4]
[408618993,1773973832079,-1200.0,0.000129,4]
[408618994,1773973832089,-21452.79461987,0.00013,7]
[408618995,1773973832100,-166.67,0.00013028,2]
[408618996,1773973832110,-11024.99076348,0.00013205,2]
[408618997,1773973832120,-979.16666667,0.00013265,2]
[408618998,1773973832130,-502.0,0.000133,2]
[408618999,1773973832140,-507.0,0.000133,2]
[408619000,1773973832150,-7193.54,0.00013304,2]
[408619001,1773973832160,-150.99,0.00013304,2]
[408619002,1773973832170,-301.06,0.00013304,2]
[408619003,1773973832180,-150.99,0.00013304,2]
[408619004,1773973832195,-999.99,0.00013304,2]
[408619005,1773973832205,-299.99,0.00013304,2]
[408619006,1773973832215,-1543.75,0.00013304,2]
[408619007,1773973832225,-9999.99,0.00013304,2]
[408619008,1773973832235,-205.88255771,0.00013304,2]
[408619009,1773973832245,-500.0,0.00013304,2]
[408619010,1773973832255,-500.0,0.00013304,2]
[408619011,1773973832265,-500.0,0.00013304,2]
[408619012,1773973832275,-500.0,0.00013304,2]
[408619013,1773973832286,-500.0,0.00013304,2]
[408619014,1773973832296,-500.0,0.00013304,2]
[408619015,1773973832307,-500.0,0.00013304,2]
[408619016,1773973832317,-500.0,0.00013304,2]
[408619017,1773973832327,-500.0,0.00013304,2]
[408619018,1773973832337,-500.0,0.00013304,2]
[408619019,1773973832347,-500.0,0.00013304,2]
[408619020,1773973832357,-500.0,0.00013304,2]
[408619021,1773973832368,-500.0,0.00013304,2]
[408619022,1773973832378,-500.0,0.00013304,2]
[408619023,1773973832388,-500.0,0.00013304,2]
[408619024,1773973832398,-500.0,0.00013304,2]
[408619025,1773973832409,-500.0,0.00013304,2]
[408619026,1773973832419,-186.65523192,0.00013304,2]
[408619027,1773973832430,-500.0,0.00013304,2]
[408619028,1773973832440,-500.0,0.00013304,2]
[408619029,1773973832449,-500.0,0.00013304,2]
[408619030,1773973832459,-500.0,0.00013304,2]
[408619031,1773973832470,-500.0,0.00013304,2]
[408619032,1773973832480,-500.0,0.00013304,2]
[408619033,1773973832490,-500.0,0.00013304,2]
[408619034,1773973832500,-500.0,0.00013304,2]
[408619035,1773973832511,-500.0,0.00013304,2]
[408619036,1773973832520,-500.0,0.00013304,2]
[408619037,1773973832530,-1000.0,0.00013305,2]
[408619038,1773973832540,-45953.20140604,0.00013305,2]
[408619039,1773973832558,-661.27450817,0.00013305,2]
[408619040,1773973832575,-500.0,0.00013304,2]
[408619041,1773973832585,-284.54454562,0.00013305,2]
[408619043,1773973838062,-500.0,0.00013304,2]
[408619044,1773973838072,-500.0,0.00013304,2]
[408619045,1773973838082,-500.0,0.00013304,2]
[408619046,1773973838092,-26532.13559303,0.00013305,2]
[408619047,1773973838103,-1641.69245446,0.00013305,2]
[408619048,1773973838114,-442.74609776,0.00013305,2]
[408619049,1773973838126,-756.54409797,0.00013305,2]
[408619081,1773973840122,-511.0,0.00013305,2]
[408619082,1773973840390,-6514.75415118,0.00013305,2]
[408619084,1773973840601,-1081.04321566,0.00013305,2]
[408619094,1773973843248,-62960.06573011,0.00013305,2]
[408619096,1773973843259,-2500.0,0.00013305,2]
[408619097,1773973843269,-184.443,0.00013305,2]
[408619098,1773973843279,-3844.75570719,0.0001332,2]
[408619099,1773973843291,-3088.02454541,0.0001332,2]
[408619100,1773973843301,-296.84053956,0.0001332,2]
[408619101,1773973843311,-160.0,0.00013357,2]
[408619102,1773973843321,-500.0,0.00013373,2]
[408619103,1773973843331,-2409.48650907,0.0001338,2]
[408619104,1773973843340,-151.0,0.00013397,2]
[408619105,1773973843350,-151.0,0.00013397,2]
[408619106,1773973843360,-151.0,0.00013397,2]
[408619107,1773973843369,-151.0,0.00013397,2]
[408619108,1773973843379,-151.0,0.00013397,2]
[408619109,1773973843389,-151.0,0.00013397,2]
[408619110,1773973843399,-151.0,0.00013397,2]
[408619111,1773973843410,-151.0,0.00013397,2]
[408619112,1773973843420,-151.0,0.00013397,2]
[408619113,1773973843430,-151.0,0.00013397,2]
[408619114,1773973843440,-151.0,0.00013397,2]
[408619115,1773973843449,-153.0056866,0.00013397,2]
[408619116,1773973843459,-437.0,0.00013397,2]
[408619118,1773973843469,-2403.803,0.00013404,2]
[408619120,1773973843480,-363.59094445,0.00013404,2]
[408619122,1773973843491,-50883.36257455,0.00013405,2]
[408619133,1773973845794,-428.72,0.00013405,2]
[408619134,1773973845808,-10077.07125778,0.00013405,2]
[408619135,1773973845898,-4276.80000022,0.00013405,2]
[408619136,1773973846172,-262.6,0.00013405,2]
[408619137,1773973846184,-11188.83341716,0.00013405,2]
[408619144,1773973953762,165.38,6.244e-05,2]
[408619145,1773973954158,165.38,7.136e-05,2]
[408619156,1773975032067,-165.38,8.028e-05,2]
[408619157,1773975032078,-250.0,8.028e-05,2]
[408619158,1773975032088,-250.0,8.83e-05,2]
[408619159,1773975032098,-165.38,8.92e-05,2]
[408619160,1773975032108,-250.0,8.957e-05,2]
[408619161,1773975032118,-165.38,9.811e-05,2]
[408619162,1773975032128,-1200.0,9.999e-05,2]
[408619163,1773975032138,-2745.68,0.0001,2]
[408619164,1773975032148,-1376.69,0.0001,2]
[408619165,1773975032158,-300.0,0.00010199,2]
[408619166,1773975032169,-300.0,0.00010199,2]
[408619167,1773975032179,-1214.0,0.000102,3]
[408619168,1773975032189,-177.16080673,0.00010299,2]
[408619169,1773975032198,-165.38,0.00010703,2]
[408619170,1773975032208,-500.0,0.0001074,2]
[408619171,1773975032219,-1280.0,0.00010999,2]
[408619172,1773975032229,-244.0,0.00011217,2]
[408619173,1773975032242,-500.0,0.00011547,2]
[408619174,1773975032251,-200.0,0.00011569,2]
[408619175,1773975032262,-2864.48,0.00011584,2]
[408619176,1773975032272,-165.38,0.00011595,2]
[408619177,1773975032282,-197.99,0.00011975,2]
[408619179,1773975032293,-166.66,0.00011978,2]
[408619181,1773975032303,-166.66,0.0001223,2]
[408619183,1773975032313,-380.0,0.00012274,2]
[408619185,1773975032322,-1500.0,0.00012291,2]
[408619186,1773975032332,-166.66,0.00012482,2]
[408619188,1773975032342,-150.0,0.00012487,2]
[408619190,1773975032352,-165.38,0.00012487,2]
[408619192,1773975032361,-166.66,0.00012735,2]
[408619194,1773975032371,-168.07,0.00012793,2]
[408619196,1773975032381,-200.0,0.000128,4]
[408619198,1773975032390,-500.0,0.000129,4]
[408619200,1773975032400,-166.66,0.00012987,2]
[408619202,1773975032409,-503.09631867,0.00012992,2]
[408619204,1773975032419,-200.0,0.00012992,2]
[408619206,1773975032428,-3000.0,0.00013,2]
[408619208,1773975032438,-530.42454274,0.00013105,2]
[408619210,1773975032449,-160.0,0.00013175,2]
[408619213,1773975032459,-168.04,0.00013193,2]
[408619215,1773975032468,-168.04,0.00013193,2]
[408619217,1773975032478,-75866.23908164,0.00013204,2]
[408619225,1773975038135,-1289.00491082,0.000105,5]
[408619226,1773975038189,-1605.0,0.000105,5]
[408619227,1773975038296,-1933.13504608,0.000105,5]
[408619228,1773975038308,-448.26186111,0.000105,5]
[408619233,1773975040548,-256.59818199,0.000105,5]
[408619234,1773975040558,-78.78181801,0.00013204,2]
[408619235,1773975040570,-194277.30462158,0.00013204,2]
[408619236,1773975040812,-851.37468257,0.00013204,2]
[408619237,1773975040824,-2365.275,0.00013204,2]
[408619238,1773975040835,-2511.0,0.00013204,2]
[408619239,1773975040847,-1844.09,0.00013204,2]
[408619240,1773975040859,-6742.10642785,0.00013204,2]
[408619262,1773975046051,-37109.66758144,0.00013204,2]
[408619266,1773975696774,200.0,0.00012575,10]
[408619267,1773975705368,200.0,0.00012575,10]
[408619268,1773975716860,284.7,0.00012575,10]
[408619269,1773975990695,1000.0,0.00012,30]
[408619270,1773976001109,1000.0,0.00013,30]
[408619271,1773976013149,2000.0,0.000125,30]
[408619272,1773976027905,1491.07,0.00013,30]
[408619273,1773976038927,1000.0,0.000121,30]
[408619277,1773976232409,-2356.5,0.0001,2]
[408619278,1773976232420,-3298.0,0.000104,5]
[408619279,1773976232430,-673.92130247,0.00011002,2]
[408619280,1773976232451,-1598.0128427,0.00011002,2]
[408619281,1773976232467,-1742.32910015,0.00011171,2]
[408619282,1773976232477,-6759.50126224,0.00011471,2]
[408619283,1773976232487,-1801.88,0.00011507,2]
[408619284,1773976232497,-7378.91966823,0.00011571,2]
[408619285,1773976232507,-161.86,0.00011644,2]
[408619286,1773976232517,-259.52,0.00011659,2]
[408619287,1773976232527,-8987.7219349,0.00011671,2]
[408619288,1773976232537,-10000.0,0.00011729,2]
[408619289,1773976232549,-150.0,0.0001177,2]
[408619291,1773976232559,-9268.08734329,0.00011771,2]
[408619294,1773976232569,-500.0,0.00011781,2]
[408619296,1773976232578,-2000.0,0.00011807,2]
[408619299,1773976232588,-150.0,0.00012104,2]
[408619302,1773976232598,-210.59,0.0001221,2]
[408619306,1773976232608,-578.59955113,0.00012227,2]
[408619309,1773976232619,-9842.08,0.00012261,2]
[408619310,1773976232629,-166.66,0.00012414,2]
[408619311,1773976232639,-501.0,0.00012795,2]
[408619312,1773976232650,-200.0,0.000128,4]
[408619313,1773976232660,-553.79742006,0.00012816,2]
[408619314,1773976232670,-5019.39839512,0.0001283,2]
[408619315,1773976232680,-5000.0,0.0001283,2]
[408619316,1773976232690,-7965.41053268,0.00012833,2]
[408619317,1773976232701,-151.0,0.00012833,2]
[408619318,1773976232710,-1451.0,0.0001287,2]
[408619319,1773976232720,-150.0,0.00012899,2]
[408619320,1773976232730,-500.0,0.000129,4]
[408619321,1773976232740,-2230.5958,0.00012905,2]
[408619322,1773976232749,-1451.0,0.00012914,2]
[408619323,1773976232759,-1451.0,0.00012926,2]
[408619324,1773976232769,-1451.0,0.00012945,2]
[408619325,1773976232779,-2500.0,0.00012951,2]
[408619326,1773976232789,-13275.05495481,0.00012951,2]
[408619327,1773976232799,-6639.2974204,0.00012986,2]
[408619328,1773976232809,-1451.0,0.00013,2]
[408619329,1773976232824,-6762.1846,0.00013005,2]
[408619330,1773976232834,-1451.0,0.00013029,2]
[408619331,1773976233147,-914.46898429,0.00013043,2]
[408619332,1773976233158,-201.77912311,0.00013043,2]
[408619333,1773976233168,-435.45718902,0.00013043,2]
[408619334,1773976233178,-500.0,0.0001305,2]
[408619335,1773976233188,-500.0,0.0001305,2]
[408619336,1773976233198,-500.0,0.0001305,2]
[408619337,1773976233208,-500.0,0.0001305,2]
[408619338,1773976233218,-500.0,0.0001305,2]
[408619339,1773976233228,-500.0,0.0001305,2]
[408619340,1773976233238,-500.0,0.0001305,2]
[408619341,1773976233247,-500.0,0.0001305,2]
[408619342,1773976233258,-500.0,0.0001305,2]
[408619343,1773976233267,-500.0,0.0001305,2]
[408619344,1773976233277,-500.0,0.0001305,2]
[408619345,1773976233287,-500.0,0.0001305,2]
[408619346,1773976233297,-500.0,0.0001305,2]
[408619347,1773976233307,-500.0,0.0001305,2]
[408619348,1773976233316,-500.0,0.0001305,2]
[408619349,1773976233326,-500.0,0.0001305,2]
[408619350,1773976233336,-500.0,0.0001305,2]
[408619351,1773976233346,-500.0,0.0001305,2]
[408619352,1773976233360,-340.23259971,0.0001305,2]
[408619353,1773976233381,-500.0,0.0001305,2]
[408619354,1773976233396,-500.0,0.0001305,2]
[408619355,1773976233408,-500.0,0.0001305,2]
[408619356,1773976233418,-500.0,0.0001305,2]
[408619357,1773976233428,-500.0,0.0001305,2]
[408619358,1773976233439,-500.0,0.0001305,2]
[408619359,1773976233451,-2923.3283443,0.00013051,2]
[408619360,1773976233462,-65200.8782118,0.00013051,2]
[408619361,1773976233476,-7696.009394,0.00013051,2]
[408619362,1773976233489,-17551.2538574,0.00013051,2]
[408619363,1773976233501,-1190.5499824,0.00013051,2]
[408619364,1773976233512,-26159.2020243,0.00013051,2]
[408619365,1773976233523,-1451.0,0.00013079,2]
[408619366,1773976233534,-166.66,0.00013097,2]
[408619367,1773976233547,-200.0,0.00013098,2]
[408619368,1773976233559,-1000.0,0.00013104,2]
[408619369,1773976233569,-13944.50793783,0.00013104,2]
[408619370,1773976238256,-226.11226217,0.00013104,2]
[408619371,1773976238267,-273.29308955,0.00013104,2]
[408619372,1773976238311,-1086.8797393,0.00013104,2]
[408619373,1773976238421,-1270.60232014,0.00013104,2]
[408619374,1773976238433,-317.42175753,0.00013104,2]
[408619375,1773976238445,-2907.32038705,0.00013104,2]
[408619376,1773976238454,-981.07680582,0.00013114,2]
[408619377,1773976238464,-195.0,0.00013204,3]
[408619378,1773976238474,-153.41338,0.00013204,2]
[408619379,1773976238483,-102.35936923,0.00013204,2]
[408619380,1773976238502,-48.64063077,0.00013204,2]
[408619381,1773976238512,-151.0,0.00013204,2]
[408619382,1773976238522,-151.0,0.00013204,2]
[408619383,1773976238532,-136.47439893,0.00013204,2]
[408619385,1773976240540,-14.52560107,0.00013204,2]
[408619386,1773976240557,-151.0,0.00013204,2]
[408619387,1773976240568,-151.0,0.00013204,2]
[408619388,1773976240578,-151.0,0.00013204,2]
[408619389,1773976240590,-151.000008,0.00013204,2]
[408619390,1773976240599,-151.0,0.00013204,2]
[408619391,1773976240610,-151.0,0.00013204,2]
[408619392,1773976240621,-151.0,0.00013204,2]
[408619393,1773976240632,-152.976939,0.00013204,2]
[408619394,1773976240641,-151.0,0.00013204,2]
[408619395,1773976240651,-279.85235315,0.00013214,2]
[408619396,1773976240663,-1171.14764685,0.00013214,2]
[408619397,1773976240674,-166.66,0.00013239,2]
[408619398,1773976240684,-168.0,0.00013264,2]
[408619399,1773976240693,-501.28596026,0.00013273,2]
[408619400,1773976240703,-1290.90639289,0.00013283,2]
[408619401,1773976240714,-709.09360711,0.00013283,2]
[408619402,1773976240724,-168.04,0.00013297,2]
[408619403,1773976240733,-129.92456433,0.000133,2]
[408619404,1773976240745,-750.0,0.000133,2]
[408619405,1773976240756,-1015.96867818,0.000133,2]
[408619406,1773976240915,-872.14,0.000133,2]
[408619407,1773976240927,-3575.85394445,0.000133,2]
[408619423,1773976243291,-1351.88906765,0.000133,2]
[408619424,1773976243303,-809.74516329,0.000133,2]
[408619425,1773976243524,-122.69942323,0.000133,2]
[408619427,1773976246197,-7350.20269681,0.000133,2]
[408619428,1773976246514,-6803.533306,0.000133,2]
[408619429,1773976246526,-2507.07470603,0.000133,2]
[408619442,1773976495350,163.0,4.6e-05,2]
[408619443,1773976798927,154.92,6.237e-05,2]
[408619444,1773976799144,154.92,6.653e-05,2]
[408619445,1773976799332,138.88514163,7.069e-05,2]
[408619446,1773976799356,16.03485837,7.069e-05,2]
[408619460,1773977431425,-213.0,7.484e-05,2]
[408619461,1773977431438,-250.0,7.484e-05,2]
[408619462,1773977431448,-154.92,7.484e-05,2]
[408619463,1773977431464,-154.92,7.9e-05,2]
[408619464,1773977431475,-3263.623161,7.945e-05,2]
[408619465,1773977431485,-252.31247552,7.983e-05,2]
[408619466,1773977431496,-250.0,8.232e-05,2]
[408619467,1773977431506,-154.92,8.316e-05,2]
[408619468,1773977431517,-56.30430348,8.732e-05,2]
[408619469,1773977431530,-98.61569652,8.732e-05,2]
[408619470,1773977431540,-154.92,9.148e-05,2]
[408619471,1773977431551,-154.92,9.563e-05,2]
[408619472,1773977431562,-154.92,9.979e-05,2]
[408619473,1773977431572,-154.92,0.00010395,2]
[408619474,1773977431582,-788.93813694,0.000105,5]